Cogmind - Beta 17 @@@ ROGUE MODE // 2026.08.23 @ 12:08:24 Player: Fedop Result: Destroyed by G-34 Mercenary with Small Laser Performance ------------- Evolutions (0) 0 Regions Visited (1) 200 Robots Destroyed (2) 10 Value Destroyed (14) 14 Prototype IDs (2) 40 Alien Tech Used (0) 0 Bonus (0) 0 TOTAL SCORE: 264 Bonus ------- None Cogmind --------- Core Integrity 0/250 Matter 269/300 Energy 67/100 System Corruption 0% Temperature Cool (6) Movement Core (50) Location -10/Materials Parts ------- > --- POWER (1) -------- (None) > --- PROPULSION (2) --- (None) > --- UTILITY (2) ------ ECM Suite > --- WEAPON (2) ------- (None) > --- INVENTORY (5) ---- Ion Engine Ion Engine Light Treads Light Treads Small Storage Unit Peak State ------------ > --- POWER ------------ Ion Engine > --- PROPULSION ------- Light Treads Light Treads > --- UTILITY ---------- Small Storage Unit Seismic Detector > --- WEAPON ----------- (None) > --- INVENTORY -------- Ion Engine Aluminum Leg Aluminum Leg [Rating: 5] Favorites ----------- Power Ion Engine Engine Ion Engine Propulsion Light Treads Treads Light Treads Leg Aluminum Leg Utility Small Storage Unit Device ECM Suite Storage Small Storage Unit Weapon None Build | -11 -10 ------- Run | Yrd Mat Slots Evolved . | . . Power . | . . Propulsion . | . . Utility . | . . Weapon . | . . Parts Attached 11 | 7 4 Power 1 | 1 . Engine 1 | 1 . Core . | . . Reactor . | . . Propulsion 6 | 4 2 Treads 4 | 2 2 Leg 2 | 2 . Wheel . | . . Hover . | . . Flight . | . . Utility 4 | 2 2 Device 3 | 1 2 Storage 1 | 1 . Processor . | . . Hackware . | . . Protection . | . . Artifact . | . . Weapon . | . . Energy Gun . | . . Energy Cannon . | . . Ballistic Gun . | . . Ballistic Cannon . | . . Launcher . | . . Special Weapon . | . . Impact Weapon . | . . Slashing Weapon . | . . Piercing Weapon . | . . Special Melee Weapon . | . . Unidentified Prototypes . | . . Parts Lost 3 | . 3 Power . | . . Propulsion 2 | . 2 Utility 1 | . 1 Weapon . | . . Highest Loss Streak 2 | . 2 To Critical Strikes . | . . Average Backups 5 | 2 6 Power 1 | . 1 Propulsion 3 | 1 3 Utility 1 | . 1 Weapon . | . . Tool/Special . | . . Unused Backups 3 | 1 2 Power 1 | . 1 Propulsion . | . . Utility 1 | . 1 Weapon 1 | 1 . Tool/Special . | . . Average Slot Usage (%) 61 | . 61 Engine 10 | . 10 Treads 19 | . 19 Leg 5 | . 5 Device 13 | . 13 Storage 10 | . 10 Peak Build Rating 5 | 5 5 Average Rating 4 | 4 4 On Entrance 2 | . 5 Avg Prop Armor Cover (%) 40 | . 40 Naked Turns . | . . Heaviest Build 12 | 11 12 Greatest Support 40 | 40 40 Greatest Overweight (x) 1 | 1 . Average Overweight (x) . | . . Largest Inventory Capacity 8 | 8 8 Average Capacity 7 | 7 7 Most Carried 7 | 4 7 Average Carried 5 | 2 6 Final Capacity 8 | 8 5 Final Carried 5 | 3 5 Class Distribution -------------------- 100% | Mutant Dominant Class ---------------- Mutant | -10/Materials Resources | -11 -10 ----------- Run | Yrd Mat Matter Collected 219 | 219 . Remotely . | . . Salvage Created . | . . Parts 5 | 5 . Haulers Intercepted . | . . Recyclers Shooed 1 | . 1 Parts Field Recycled . | . . Retrieved Matter . | . . Parts Self-Destructed . | . . Prevented . | . . Parts Restored . | . . Kills | -11 -10 ------- Run | Yrd Mat Combat Hostiles Destroyed . | . . Classes Destroyed 1 | 1 . Tunneler 2 | 2 . Best Kill Streak 2 | 2 . Combat Bots Only . | . . Max Kills in Single Turn 1 | 1 . Gunslinging . | . . Exploded . | . . Melee . | . . Uniques/NPCs Destroyed . | . . Combat | -11 -10 -------- Run | Yrd Mat Hostile Shots Fired 70 | . 70 Missed 20 | . 20 Hits 50 | . 50 Projectile 50 | . 50 Damage Taken 646 | . 646 Core 257 | . 257 Absorbed by Shields . | . . Core Remaining (%) 100 | 100 . Volleys Fired . | . . Largest . | . . Hottest . | . . Shots Fired . | . . Gun . | . . Cannon . | . . Launcher . | . . Special . | . . Kinetic . | . . Thermal . | . . Explosive . | . . Electromagnetic . | . . Robot Hit Streak . | . . Robot Miss Streak . | . . Penetration Max . | . . Secondary Targets . | . . Shots Hit Robots . | . . Core Hits 3 | 1 2 Critical Kills . | . . Critical Parts Destroyed . | . . Critical Strikes . | . . Melee Attacks . | . . Impact . | . . Slashing . | . . Piercing . | . . Sneak Attacks . | . . Combat Hostiles . | . . Follow-up Attacks . | . . Damage Inflicted 70 | 33 37 Guns . | . . Cannons . | . . Explosions . | . . Melee . | . . Ramming 70 | 33 37 Kinetic . | . . Thermal . | . . Explosive . | . . Electromagnetic . | . . Impact . | . . Slashing . | . . Piercing . | . . Highest Corruption . | . . Average Corruption . | . . Corruption Purged . | . . Corruption Blocked . | . . Overload Shots . | . . Overflow Damage . | . . Projectiles . | . . Explosions . | . . Melee . | . . Knockbacks . | . . Impact . | . . Kinetic . | . . Secondary . | . . Self-Inflicted Damage 10 | . 10 Shots . | . . Rammed 22 | 12 10 Targets Rammed 24 | 14 10 Kicked . | . . Crushed 2 | 2 . Highest Temperature 4 | . 4 Average Temperature 3 | . 3 Received Heat Transfer 351 | . 351 Siege Activations . | . . Martial Activations . | . . Shielding Activations . | . . Robots Disrupted . | . . Combat Hostiles . | . . Robots Corrupted . | . . Combat Hostiles . | . . Parts Fried . | . . Impact Corruptions . | . . Robots Melted . | . . Combat Hostiles . | . . Parts Melted . | . . Heat Transferred . | . . Parts Sabotaged . | . . Parts Stolen . | . . Parts Stripped . | . . Power Chain Reactions . | . . Alert | -11 -10 ------- Run | Yrd Mat Maximum Alert Level . | . . Low Security (%) 100 | 100 100 Level 1 . | . . Level 2 . | . . Level 3 . | . . Level 4 . | . . Level 5 . | . . High Security . | . . Max Security . | . . Peak Influence 11 | 5 11 Initial . | . . Average . | . . Influence Increases 58 | 10 48 Destroy 0b10 Robot/NC 10 | 10 . Successful Hack 48 | . 48 Influence Decreases 58 | 10 48 Time Decay 58 | 10 48 Squads Dispatched 3 | . 3 Investigation 2 | . 2 Extermination . | . . Reinforcement 1 | . 1 Assault . | . . Garrison . | . . Intercept . | . . Searches Triggered . | . . Construction Impeded . | . . Haulers Reinforced . | . . Active Scanning Responses . | . . Cargo Convoy Interrupts . | . . Stealth | -11 -10 --------- Run | Yrd Mat Distress Signals 2 | . 2 Communications Jammed . | . . Distress Signals . | . . Times Spotted 28 | . 28 Peak Tracking Total 14 | . 14 Tactical Retreats 6 | . 6 ECM-based Alert Blocks 23 | . 23 Traps | -11 -10 ------- Run | Yrd Mat Traps Triggered 1 | . 1 Indirectly . | . . Trap Hack Attempts . | . . Triggered . | . . Disarmed . | . . Reprogrammed . | . . Reused . | . . Traps Extracted . | . . Installed . | . . Triggered . | . . Machines | -11 -10 ---------- Run | Yrd Mat Machines Disabled . | . . Max in Single Turn . | . . Machines Repaired . | . . Machines Dismantled . | . . Machines Sabotaged . | . . Overloaded Fab Kills . | . . Hacking | -11 -10 --------- Run | Yrd Mat Machines Accessed 6 | . 6 Terminals 5 | . 5 Fabricators . | . . Repair Stations . | . . Recycling Units 1 | . 1 Scanalyzers . | . . Garrison Access . | . . Total Hacks 28 | . 28 Successful 14 | . 14 Failed 14 | . 14 Catastrophic 3 | . 3 Database Lockouts . | . . Manual 16 | . 16 Terminals 26 | . 26 Fabricators . | . . Repair Stations . | . . Recycling Units 2 | . 2 Scanalyzers . | . . Garrison Access . | . . Terminal Hacks 10 | . 10 Part Schematic 2 | . 2 Robot Analysis 2 | . 2 Prototype ID Bank 1 | . 1 Terminal Index 1 | . 1 Alert Level 1 | . 1 Locate Traps 1 | . 1 Hauler Manifests 1 | . 1 Registered Components 1 | . 1 Fabricator Hacks . | . . Repair Station Hacks . | . . Recycling Unit Hacks . | . . Scanalyzer . | . . Garrison Access Hacks . | . . Unauthorized Hacks 4 | . 4 Terminals 4 | . 4 Botnet 4 | . 4 Fabricators . | . . Repair Stations . | . . Recycling Units . | . . Scanalyzers . | . . Garrison Access . | . . Data Cores Recovered . | . . Used . | . . Hacking Detections 6 | . 6 Full Trace Events 2 | . 2 Feedback Events . | . . Feedback Blocked . | . . Robot Schematics Acquired . | . . Robots Built . | . . Authchips . | . . Time . | . . Total Robot Build Rating . | . . Part Schematics Acquired 1 | . 1 Parts Built . | . . Authchips . | . . Time . | . . Total Part Build Rating . | . . Part Studies Acquired . | . . Parts Repaired . | . . Time . | . . Parts Recycled . | . . Recycled Matter . | . . Retrieved Matter . | . . Retrieved Components . | . . Parts Scanalyzed . | . . Part Schematics Acquired . | . . Parts Damaged . | . . Bothacking | -11 -10 ------------ Run | Yrd Mat Used RIF Installer . | . . Robots Hacked . | . . Non-combat . | . . Combat . | . . Robot Hacks Applied . | . . Relay Couplers Released . | . . Fabnet Peak Effective % . | . . Robots Rewired . | . . Allies Hacked . | . . Hacks Repelled . | . . Allies | -11 -10 -------- Run | Yrd Mat Total Allies . | . . Largest Group . | . . Highest-Rated Group . | . . Highest-Rated Ally . | . . Total Orders . | . . Ally Attacks . | . . Total Damage . | . . Kills . | . . Allies Corrupted . | . . Allies Melted . | . . Intel | -11 -10 ------- Run | Yrd Mat Active Infowar (turns) 826 | 149 677 Structural 6 | . 6 Seismic 396 | 149 247 ECM 424 | . 424 Robot Analysis Total 2 | . 2 Derelict Logs Recovered . | . . Drone Launches . | . . Drone Recoveries . | . . Exploration | -11 -10 ------------- Run | Yrd Mat Turns Passed 976 | 234 742 Spaces Moved 623 | 130 493 Core 195 | 6 189 Treads 336 | 109 227 Legs 92 | 15 77 Wheels . | . . Hover . | . . Flight . | . . Fastest Speed 50 | 50 50 Average Speed 119 | 151 111 Slowest Speed 160 | 160 160 Overloaded Moves . | . . Propulsion Burnouts . | . . Robots Hopped . | . . Potential Cave-ins . | . . Cave-ins Triggered . | . . Exploration Rate (%) 32 | 5 60 Regions Visited 1 Branch Regions . Pre-discovered Areas . | . . Known Exits Taken . | . . Unknown Exits Taken 1 | 1 . Scrap Searched . | . . Spaces Dug . | . . Terrain Destroyed . | . . Melee . | . . Projectile . | . . AOE . | . . Terrain Rammed . | . . Walls Destroyed . | . . Machines Disabled . | . . Actions | -11 -10 --------- Run | Yrd Mat Total 835 | 155 680 Wait 161 | . 161 Move 622 | 129 493 Hop . | . . Pick Up 9 | 4 5 Fast Attach 6 | 5 1 Attach . | . . Detach 1 | . 1 Swap 8 | 2 6 Drop 4 | 1 3 Fire . | . . Melee . | . . Ram 4 | . 4 Kick . | . . Crush 20 | 14 6 Escape Stasis . | . . Rewire . | . . Trap . | . . Miscellaneous . | . . Route ------- -11/Scrapyard -10/Materials (discovered 2 exits: [*Mat x2]) History --------- Turn | Location | Event 7 | -11/Scrapyard | Discovered new exit (range 16) 235 | -11/Scrapyard | Entered Materials 312 | -10/Materials | Build established: Mutant 518 | -10/Materials | Discovered new exit (range 12) 841 | -10/Materials | Discovered new exit (range 16) 911 | -10/Materials | Core integrity fell below 50% 924 | -10/Materials | Core integrity fell below 20% 977 | -10/Materials | Destroyed by G-34 Mercenary with Small Laser Last Messages --------------- 00936_ Acquired Sml. Storage Unit. 00940_ U-05 Engineer builds a Wall. 00941_ T-07 Excavator is excavating. 00944_ U-05 Engineer builds a Wall. 00945_ T-07 Excavator is excavating. 00948_ U-05 Engineer lays Concrete. 00949_ U-05 Engineer builds a Wall. 00949_ T-07 Excavator is excavating. 00953_ U-05 Engineer lays Concrete. 00953_ T-07 Excavator is excavating. 00954_ U-05 Engineer builds a Wall. 00958_ T-07 Excavator is excavating. 00958_ U-05 Engineer lays Concrete. 00960_ U-05 Engineer builds a Wall. 00962_ T-07 Excavator is excavating. 00966_ U-05 Engineer lays Concrete. 00970_ U-05 Engineer builds a Wall. 00970_ T-07 Excavator is excavating. 00973_ U-05 Engineer destroyed. 00977_ T-07 Excavator is excavating. Map ----- +----------------------------------------------------+ | ???????????????????????????????? | | ???????????????????????????????? | | ???????????????????????????????? | | ???????????????????????????????? | | ???????????????????????????????? | | ???????????????????????????????? | | ???????????????????????????????? | | ???????????????????????????????? | | ???????????????????????????????? | | ########???????????????????????? | | #???????????????????????? | | #???????????????????????? | | #???????????????????????? | | #???????????????????????? | | #???????????????????????? | | #?#######???????????????? | | #?# #???????????????? | | ### #???????????????? | | + #???????????????? | | ########## #???????????????? | | ?????????# #??????#####????? | | ?????????## ##?????## ###??? | | ??????????# #??????#=! #??? | | ??????????# #??????#%| t ##?? | | ??????????# ########!* ##? | | ??????????# ## # g @ X#? | | ########### # ##? | | T #?? | | ########### w # ######?? | | #############+## g ####??????? | | ## ## ########???? | | !! ## "Y" ## # ! #???? | | !! ## """ ## + #???? | | ! ## ## # #???? | | ####+#### #]] ! #???? | | #??# #?] #???? | | #??# #? #???? | | #??# """ #??#####???? | | ##/######### """ #??????????? | | """ #??????????? | | ###### #??????????? | | #????# #??????????? | | ##????# #??????????? | | #### #?????## ### #??????????? | | ???# #??????# #?# ######?????? | | ???# #??????# #?# #?????? | | ???# #??????# #?# ######? | | ???# #??????# #?# # # | | ####/###????# #?###### # """ # | | # #???##+######## # """ # | +----------------------------------------------------+ Best States ------------- Heat Dissipation 25 Energy Generation 10 Energy Capacity 250 Matter Stores 293 Matter Capacity 300 Sight Range 16 Terrain Scan Density 10 ECM Strength 1 Evasion (%) 55 Recoil Reduction 2 Item Schematics ----------------- Transport Network Coupler | -10/Materials | Hacked Robot Schematics ------------------ None Fabricated ------------ Nothing Repaired ---------- Nothing Studied --------- None Alien Tech Used ----------------- None Achievements -------------- None Challenges ------------ None Game ------ Seed TargetingHardenedJoltstriker Manual? 0 Play Time 00:14:59 Cumulative 92.9 hours Start 2026.08.23 @ 11:33:53 End 2026.08.23 @ 12:08:24 Sessions 1 Manual Loads 0 Difficulty Rogue Special Mode None Game No. 57 Rogue 57 Adventurer 0 Explorer 0 Win Type - Total 0 Types 0/0/0/0/0/0/0/0/0/0 Lore% 34 Gallery% 40 Achievement% 31 Wizard Run 0 Options --------- Layout 0 ASCII 0 Keyboard 1 Movement Vi Keybinds 0 Fullscreen 2 Font 18/SmallcapsGlow Map View 76x50 Zoom Use 0% Tactical HUD 1 Map Filters NONE Filters NONE Steam 1 RUN: 3a5f7cbe-b201-4bf9-9d78-1b7040ccbed5